Cogmind - Beta 15 *** ADVENTURER MODE // 2025.06.04 @ 21:50:47 Player: Gentle Jesus Result: Destroyed by as-88567 with Assembled Rifle Performance ------------- Evolutions (0) 0 Regions Visited (2) 400 Robots Destroyed (22) 110 Value Destroyed (412) 412 Prototype IDs (0) 0 Alien Tech Used (0) 0 Bonus (-6) -6 TOTAL SCORE: 916 Bonus ------- Friendly Fire -6 Cogmind --------- Core Integrity 0/250 Matter 270/300 Energy 51/125 System Corruption 3% Temperature Danger (463) Movement Walking (120) Location -10/Mines Parts ------- > --- POWER (1) -------- Light Ion Engine > --- PROPULSION (2) --- Aluminum Leg Aluminum Leg > --- UTILITY (2) ------ Medium Storage Unit Visual Processing Unit > --- WEAPON (2) ------- Beam Rifle Beam Rifle > --- INVENTORY (10) --- Light Ion Engine Aluminum Leg Improved Heat Sink Medium Matter Pod (100) Structural Scanner Terrain Scan Processor Terrain Scan Processor ECM Suite Peak State ------------ > --- POWER ------------ Light Nuclear Core > --- PROPULSION ------- Aluminum Leg Aluminum Leg > --- UTILITY ---------- Medium Storage Unit Visual Processing Unit > --- WEAPON ----------- Beam Rifle Light Assault Rifle > --- INVENTORY -------- Ion Engine Light Ion Engine Aluminum Leg Improved Heat Sink Medium Matter Pod Terrain Scan Processor ECM Suite Beam Rifle [Rating: 12] Favorites ----------- Power Light Ion Engine Engine Light Ion Engine Power Core Light Nuclear Core Propulsion Aluminum Leg Leg Aluminum Leg Utility Medium Storage Unit Device Improved Terrain Scanner Storage Medium Storage Unit Processor Visual Processing Unit Weapon Light Assault Rifle Energy Gun Beam Rifle Ballistic Gun Light Assault Rifle Build | -11 -10 -10 ------- Run | Yrd Mat Min Slots Evolved . | . . . Power . | . . . Propulsion . | . . . Utility . | . . . Weapon . | . . . Parts Attached 18 | 7 6 5 Power 4 | 1 1 2 Engine 3 | 1 . 2 Core 1 | . 1 . Reactor . | . . . Propulsion 5 | 2 2 1 Treads . | . . . Leg 5 | 2 2 1 Wheel . | . . . Hover . | . . . Flight . | . . . Utility 4 | 2 2 . Device 1 | 1 . . Storage 2 | 1 1 . Processor 1 | . 1 . Hackware . | . . . Protection . | . . . Artifact . | . . . Weapon 5 | 2 1 2 Energy Gun 2 | . 1 1 Energy Cannon . | . . . Ballistic Gun 3 | 2 . 1 Ballistic Cannon . | . . . Launcher . | . . . Special Weapon . | . . . Impact Weapon . | . . . Slashing Weapon . | . . . Piercing Weapon . | . . . Special Melee Weapon . | . . . Unidentified Prototypes . | . . . Parts Lost 7 | . 4 3 Power 3 | . 1 2 Propulsion 1 | . 1 . Utility 1 | . 1 . Weapon 2 | . 1 1 Highest Loss Streak 3 | . 3 2 To Critical Strikes . | . . . Average Backups 5 | 1 5 9 Power 1 | . 1 1 Propulsion . | . . 1 Utility 3 | . 2 6 Weapon . | . . . Tool/Special . | . . . Unused Backups 8 | . 1 7 Power 1 | . . 1 Propulsion . | . . . Utility 7 | . 1 6 Weapon . | . . . Tool/Special . | . . . Average Slot Usage (%) 98 | . 98 99 Engine 9 | . 7 14 Core 4 | . 6 . Leg 27 | . 27 28 Device 5 | . 7 . Storage 14 | . 14 14 Processor 8 | . 6 14 Energy Gun 7 | . 5 15 Ballistic Gun 19 | . 21 11 Peak Build Rating 12 | 9 12 11 Average Rating 9 | 5 10 10 On Entrance 6 | . 9 10 Naked Turns . | . . . Heaviest Build 19 | 11 19 19 Greatest Support 20 | 20 20 20 Greatest Overweight (x) 1 | . 1 . Average Overweight (x) . | . . . Largest Inventory Capacity 10 | 8 10 10 Average Capacity 9 | 7 9 10 Most Carried 10 | 5 10 10 Average Carried 5 | 1 5 9 Final Capacity 10 | 8 10 10 Final Carried 10 | 1 10 8 Class Distribution -------------------- 65% | Mutant 34% | Scavenger-Mutant Dominant Class ---------------- Mutant | -10/Materials Scavenger-Mutant | -10/Mines Resources | -11 -10 -10 ----------- Run | Yrd Mat Min Matter Collected 496 | 296 152 48 Remotely . | . . . Salvage Created 673 | 111 336 226 Parts 36 | 6 20 10 Haulers Intercepted . | . . . Recyclers Shooed . | . . . Parts Field Recycled . | . . . Retrieved Matter . | . . . Parts Self-Destructed . | . . . Prevented . | . . . Kills | -11 -10 -10 ------- Run | Yrd Mat Min Combat Hostiles Destroyed 19 | . 8 11 Guns 19 | . 8 11 Classes Destroyed 7 | 2 4 1 Worker 2 | . 2 . Tunneler 2 | 2 . . Recycler 1 | 1 . . Watcher 1 | . 1 . Swarmer 9 | . 3 6 Grunt 7 | . 5 2 Assembled 3 | . . 3 Best Kill Streak 5 | 2 5 3 Combat Bots Only 4 | . 4 3 Max Kills in Single Turn 1 | 1 1 1 Gunslinging . | . . . Exploded . | . . . Melee . | . . . Uniques/NPCs Destroyed . | . . . Combat | -11 -10 -10 -------- Run | Yrd Mat Min Hostile Shots Fired 135 | . 75 60 Missed 33 | . 22 11 Hits 102 | . 53 49 Melee 5 | . . 5 Projectile 97 | . 53 44 AOE 3 | . . 3 Critical Strikes 3 | . 2 1 Damage Taken 1019 | . 470 549 Core 252 | . 96 156 Absorbed by Shields . | . . . Ignored by Resistances 310 | . 143 167 Core Remaining (%) 100 | 100 . . Volleys Fired 86 | 13 42 31 Largest 2 | 2 2 2 Hottest 112 | 40 76 112 Shots Fired 168 | 26 81 61 Gun 168 | 26 81 61 Cannon . | . . . Launcher . | . . . Special . | . . . Kinetic 119 | 26 73 20 Thermal 49 | . 8 41 Explosive . | . . . Electromagnetic . | . . . Robot Hit Streak 29 | 13 29 17 Robot Miss Streak 4 | 2 2 4 Penetration Max . | . . . Secondary Targets 2 | . 1 1 Max Gunslinging Chain 1 | . 1 1 Shots Hit Robots 132 | 22 70 40 Core Hits 54 | 6 28 20 Critical Kills 1 | 1 . . Critical Parts Destroyed 1 | 1 . . Critical Strikes 3 | 2 . 1 Burn 1 | . . 1 Destroy 2 | 2 . . Melee Attacks . | . . . Impact . | . . . Slashing . | . . . Piercing . | . . . Sneak Attacks . | . . . Combat Hostiles . | . . . Follow-up Attacks . | . . . Damage Inflicted 1345 | 183 667 495 Guns 1288 | 183 610 495 Cannons . | . . . Explosions 57 | . 57 . Melee . | . . . Ramming . | . . . Kinetic 798 | 183 507 108 Thermal 490 | . 103 387 Explosive . | . . . Electromagnetic 57 | . 57 . Impact . | . . . Slashing . | . . . Piercing . | . . . Highest Corruption 3 | . . 3 Average Corruption 3 | . . 3 Corruption Purged . | . . . Corruption Blocked . | . . . Overload Shots . | . . . Overflow Damage . | . . . Projectiles . | . . . Explosions . | . . . Melee . | . . . Knockbacks . | . . . Impact . | . . . Kinetic . | . . . Secondary . | . . . Self-Inflicted Damage . | . . . Shots . | . . . Rammed . | . . . Targets Rammed . | . . . Kicked . | . . . Crushed . | . . . Highest Temperature 463 | . 178 463 Average Temperature 80 | . 46 112 Received Heat Transfer 426 | . 342 84 Effects 4 | . . 4 Shutdowns 2 | . . 2 Energy Bleed 1 | . . 1 Damage (minor) 1 | . . 1 Siege Activations . | . . . Martial Activations . | . . . Shielding Activations . | . . . Robots Disrupted . | . . . Combat Hostiles . | . . . Robots Corrupted . | . . . Combat Hostiles . | . . . Parts Fried . | . . . Impact Corruptions . | . . . Robots Melted . | . . . Combat Hostiles . | . . . Parts Melted 1 | . 1 . Heat Transferred 1332 | . 259 1073 Parts Sabotaged . | . . . Parts Stolen . | . . . Parts Stripped . | . . . Power Chain Reactions 1 | . 1 . Alert | -11 -10 -10 ------- Run | Yrd Mat Min Maximum Alert Level . | . . . Low Security (%) 100 | 100 100 100 Level 1 . | . . . Level 2 . | . . . Level 3 . | . . . Level 4 . | . . . Level 5 . | . . . High Security . | . . . Max Security . | . . . Peak Influence 120 | 10 87 120 Initial . | . . . Average 24 | . 17 63 Influence Increases 438 | 15 233 190 Destroy 0b10 Robot/C 320 | . 160 160 Destroy 0b10 Robot/NC 30 | 15 15 . Destroy Leader 62 | . 32 30 Successful Hack 4 | . 4 . Disable Machine 18 | . 18 . Destroy Structure 4 | . 4 . Influence Decreases 388 | 15 233 140 Time Decay 328 | 15 203 110 Lost Part 60 | . 30 30 Squads Dispatched 1 | . 1 . Investigation 1 | . 1 . Extermination . | . . . Reinforcement . | . . . Assault . | . . . Garrison . | . . . Intercept . | . . . Searches Triggered . | . . . Construction Impeded . | . . . Haulers Reinforced . | . . . Active Scanning Responses . | . . . Cargo Convoy Interrupts . | . . . Stealth | -11 -10 -10 --------- Run | Yrd Mat Min Distress Signals 1 | . 1 . Communications Jammed . | . . . Distress Signals . | . . . Times Spotted 44 | . 16 28 Peak Tracking Total 14 | . 5 14 Tactical Retreats 1 | . . 1 Traps | -11 -10 -10 ------- Run | Yrd Mat Min Traps Triggered 1 | . 1 . Indirectly . | . . . Trap Hack Attempts . | . . . Triggered . | . . . Disarmed . | . . . Reprogrammed . | . . . Reused . | . . . Traps Extracted . | . . . Installed . | . . . Triggered . | . . . Machines | -11 -10 -10 ---------- Run | Yrd Mat Min Machines Disabled 2 | . 2 . Max in Single Turn 2 | . 2 . Machines Repaired . | . . . Machines Dismantled . | . . . Machines Sabotaged . | . . . Overloaded Fab Kills . | . . . Hacking | -11 -10 -10 --------- Run | Yrd Mat Min Machines Accessed 3 | . 3 . Terminals 3 | . 3 . Fabricators . | . . . Repair Stations . | . . . Recycling Units . | . . . Scanalyzers . | . . . Garrison Access . | . . . Total Hacks 4 | . 4 . Successful 4 | . 4 . Failed . | . . . Catastrophic . | . . . Database Lockouts . | . . . Manual . | . . . Terminals 4 | . 4 . Fabricators . | . . . Repair Stations . | . . . Recycling Units . | . . . Scanalyzers . | . . . Garrison Access . | . . . Terminal Hacks 4 | . 4 . Locate Traps 1 | . 1 . Reinforcement Status 1 | . 1 . Assault Status 1 | . 1 . Zone Layout 1 | . 1 . Fabricator Hacks . | . . . Repair Station Hacks . | . . . Recycling Unit Hacks . | . . . Scanalyzer . | . . . Garrison Access Hacks . | . . . Unauthorized Hacks . | . . . Terminals . | . . . Fabricators . | . . . Repair Stations . | . . . Recycling Units . | . . . Scanalyzers . | . . . Garrison Access . | . . . Data Cores Recovered . | . . . Used . | . . . Hacking Detections . | . . . Full Trace Events . | . . . Feedback Events . | . . . Feedback Blocked . | . . . Robot Schematics Acquired . | . . . Robots Built . | . . . Authchips . | . . . Time . | . . . Total Robot Build Rating . | . . . Part Schematics Acquired . | . . . Parts Built . | . . . Authchips . | . . . Time . | . . . Total Part Build Rating . | . . . Parts Repaired . | . . . Time . | . . . Parts Recycled . | . . . Recycled Matter . | . . . Retrieved Matter . | . . . Retrieved Components . | . . . Parts Scanalyzed . | . . . Part Schematics Acquired . | . . . Parts Damaged . | . . . Bothacking | -11 -10 -10 ------------ Run | Yrd Mat Min Used RIF Installer . | . . . Robots Hacked . | . . . Non-combat . | . . . Combat . | . . . Robot Hacks Applied . | . . . Relay Couplers Released . | . . . Fabnet Peak Effective % . | . . . Robots Rewired . | . . . Allies Hacked . | . . . Hacks Repelled . | . . . Allies | -11 -10 -10 -------- Run | Yrd Mat Min Total Allies . | . . . Largest Group . | . . . Highest-Rated Group . | . . . Highest-Rated Ally . | . . . Total Orders . | . . . Ally Attacks . | . . . Total Damage . | . . . Kills . | . . . Allies Corrupted . | . . . Allies Melted . | . . . Intel | -11 -10 -10 ------- Run | Yrd Mat Min Active Infowar (turns) 972 | 19 718 235 Optics 565 | . 330 235 Terrain 407 | 19 388 . Robot Analysis Total . | . . . Derelict Logs Recovered 1 | . . 1 Drone Launches . | . . . Drone Recoveries . | . . . Exploration | -11 -10 -10 ------------- Run | Yrd Mat Min Turns Passed 1126 | 160 731 235 Spaces Moved 684 | 99 477 108 Core 16 | 16 . . Treads . | . . . Legs 668 | 83 477 108 Wheels . | . . . Hover . | . . . Flight . | . . . Fastest Speed 50 | 50 120 120 Average Speed 118 | 108 120 120 Slowest Speed 190 | 120 190 120 Overloaded Moves . | . . . Propulsion Burnouts . | . . . Robots Hopped . | . . . Potential Cave-ins . | . . . Cave-ins Triggered . | . . . Exploration Rate (%) 36 | 5 80 25 Regions Visited 2 Branch Regions 1 Pre-discovered Areas 1 | . . 1 Known Exits Taken . | . . . Unknown Exits Taken 2 | 1 1 . Scrap Searched . | . . . Spaces Dug . | . . . Terrain Destroyed 3 | . 3 . Melee . | . . . Projectile . | . . . AOE 3 | . 3 . Terrain Rammed . | . . . Walls Destroyed . | . . . Machines Disabled . | . . . Actions | -11 -10 -10 --------- Run | Yrd Mat Min Total 852 | 130 566 156 Wait 36 | 4 24 8 Move 682 | 98 476 108 Hop . | . . . Pick Up 24 | 8 15 1 Fast Attach 2 | . . 2 Attach 14 | 7 4 3 Detach . | . . . Swap 4 | . 3 1 Drop 4 | . 2 2 Fire 86 | 13 42 31 Melee . | . . . Ram . | . . . Kick . | . . . Crush . | . . . Escape Stasis . | . . . Rewire . | . . . Trap . | . . . Miscellaneous . | . . . Route ------- -11/Scrapyard -10/Materials (discovered 4 exits: [*Mat x2] / [*Min x2]) -10/Mines History --------- Turn | Location | Event 9 | -11/Scrapyard | Discovered new exit (range 15) 161 | -11/Scrapyard | Entered Materials 300 | -10/Materials | Discovered new exit (range 8) 305 | -10/Materials | Build established: Mutant 409 | -10/Materials | Discovered new exit (range 16) 580 | -10/Materials | Lost 3 parts (1n1u1w) 666 | -10/Materials | Discovered new exit (range 7) 757 | -10/Materials | Discovered new exit (range 10) 892 | -10/Materials | Entered Mines 958 | -10/Mines | Learned location of Storage (-7) 979 | -10/Mines | Core integrity fell below 50% 1052 | -10/Mines | Assembled infested the area 1057 | -10/Mines | Assisted by a Guerilla fighting off Assembled 1109 | -10/Mines | Core integrity fell below 20% 1127 | -10/Mines | Destroyed by as-88567 with Assembled Rifle Last Messages --------------- The unstable cave ceiling collapses. as-25570 destroyed. as-93500 destroyed. The unstable cave ceiling collapses. D-53 Grenadier destroyed. as-65765 destroyed. as-19536 destroyed. as-38966 destroyed. D-53 Grenadier destroyed. The unstable cave ceiling collapses. Ion Engine destroyed. System corrupted by crushing effect (+3). Destroyed Asb. Hover Unit. as-51792 destroyed. as-26291 destroyed. Overheating: Energy bleed (-19). as-13529 destroyed. Power failure, Lgt. Ion Engine shutdown. Overheating: Beam Rifle damaged (-3). Power failure, Lgt. Ion Engine shutdown. Map ----- +----------------------------------------------------+ | | | | | | | | | | | | | | | | | | | | | | | | | | | | | | | | | ?????????????????????????????????????????????????? | | ?????????????????????????????????????????????????? | | ??????????????????##########?????????????????????? | | ??????????????????# #?????????????????????? | | ??????????????????# #?????????????????????? | | ??????????????????# #?????????????????????? | | ??????????????????# #?????????????????????? | | ??????????????????# """" #?????????????????????? | | ??????????????????# """" #?????????????????????? | | ??????????????????# """"%@ #?????????????????????? | | ??????????????????######a######??????????????????? | | ???????????????????????#a# ###???????????####?? | | ???????????????????????# # % ###????????? ??? | | ???????????????????????# ]!%* #????????? #??? | | ???????????????????????### = % #####?##### ##?? | | ????????????????????????# ### ##? | | ???????????????????????# # ### ## #? | | ???????????????????????# ##?# ## ?? | | ???????????????????????? ##??# ## ???? | | ??????????????????????? % #???# #?# #????? | | ??????????????????????? % #???# ### ###??? | | ?????????????????????? ##??## ## #### | | ?????????????????????## ## #??## | | ??????????????????????# ?? #??# | | ?????????????????????? % #?? #??### ### | | ?????????????????????? #??? #????## #?? | | ????????????????????? #???? #?????###### #?? | | ?????????????????????###????? #??????????## #?? | | ????????????????????????????? #???????????# #?? | | ????????????????????????????? ????????????## ##?? | | ????????????????????????????? ?????????????####??? | | ?????????????????????????????????????????????????? | | ?????????????????????????????????????????????????? | | ?????????????????????????????????????????????????? | +----------------------------------------------------+ Best States ------------- Heat Dissipation 25 Energy Generation 14 Energy Capacity 250 Matter Stores 300 Matter Capacity 300 Sight Range 18 Terrain Scan Range 16 Terrain Scan Density 10 Resistance: KI 20 Resistance: TH 20 Resistance: EX 20 Resistance: EM 20 Resistance: I 20 Resistance: S 20 Resistance: P 20 Evasion (%) 55 Offensive Hacking 10 Item Schematics ----------------- None Robot Schematics ------------------ None Fabricated ------------ Nothing Repaired ---------- Nothing Alien Tech Used ----------------- None Achievements -------------- None Challenges ------------ None Game ------ Seed LargeNanofilamentsPrototype Manual? 0 Play Time 00:24:49 Cumulative 19.5 hours Start 2025.06.04 @ 14:29:38 End 2025.06.04 @ 21:50:47 Sessions 3 Manual Loads 0 Difficulty Adventurer Special Mode None Game No. 22 Rogue 0 Adventurer 22 Explorer 0 Win Type - Total 1 Types 1/0/0/0/0/0/0/0/0/0 Lore% 12 Gallery% 21 Achievement% 22 Wizard Run 0 Options --------- Layout 1 ASCII 0 Keyboard 0 Movement Mouse Keybinds 0 Fullscreen 1 Font 24/Smallcaps Map View 25x17 Zoom Use 49% Tactical HUD 0 Map Filters NONE Filters NONE Steam 1 RUN: 2073afaf-77ff-4ede-9e37-740fe2c01b4a